[Event "Live Chess"]
[Site "Chess.com"]
[Date "2021.02.06"]
[Round "2"]
[White "KnightTemplar0"]
[Black "sean330"]
[Result "0-1"]
[CurrentPosition "r5k1/p2R1ppp/1p2pb2/8/8/1B3bP1/PP3P1P/6K1 w - -"]
[Timezone "UTC"]
[ECO "B22"]
[ECOUrl "https://www.chess.com/openings/Sicilian-Defense-Alapin-Variation-Barmen-Defense-4.d4-Nf6-5.Nf3-e6"]
[UTCDate "2021.02.06"]
[UTCTime "19:01:26"]
[WhiteElo "1228"]
[BlackElo "1403"]
[TimeControl "1200+10"]
[Termination "sean330 won by resignation"]
[StartTime "19:01:26"]
[EndDate "2021.02.06"]
[EndTime "19:09:21"]
[Link "https://www.chess.com/live/game/6472132658"]

1. e4 {[%clk 0:20:08.1]} 1... c5 {[%clk 0:20:06.1]} 2. c3 {[%clk 0:20:16.3]} 2... d5 {[%clk 0:20:10.6]} 3. exd5 {[%clk 0:19:52.2]} 3... Qxd5 {[%clk 0:20:17.7]} 4. d4 {[%clk 0:19:55.4]} 4... e6 {[%clk 0:20:23.3]} 5. Nf3 {[%clk 0:20:01.5]} 5... Nf6 {[%clk 0:20:30.4]} 6. Bg5 {[%clk 0:20:06.3]} 6... Be7 {[%clk 0:20:35.7]} 7. Nbd2 {[%clk 0:20:06.9]} 7... Nc6 {[%clk 0:20:39.5]} 8. Bc4 {[%clk 0:20:14.5]} 8... Qd8 {[%clk 0:20:19]} 9. O-O {[%clk 0:20:10.3]} 9... cxd4 {[%clk 0:20:16.1]} 10. cxd4 {[%clk 0:20:15.7]} 10... Nxd4 {[%clk 0:20:14.9]} 11. Nxd4 {[%clk 0:20:24]} 11... Qxd4 {[%clk 0:20:22.9]} 12. Qb3 {[%clk 0:20:21.8]} 12... O-O {[%clk 0:20:17.4]} 13. Nf3 {[%clk 0:20:18.2]} 13... Qd7 {[%clk 0:20:14.3]} 14. Rfd1 {[%clk 0:20:07]} 14... Qc7 {[%clk 0:20:10.8]} 15. Rac1 {[%clk 0:20:03.9]} 15... Qb6 {[%clk 0:20:13.3]} 16. Bxf6 {[%clk 0:19:34.3]} 16... Qxb3 {[%clk 0:20:10.1]} 17. Bxb3 {[%clk 0:19:42.1]} 17... Bxf6 {[%clk 0:20:18.2]} 18. Rc2 {[%clk 0:19:48.9]} 18... Rd8 {[%clk 0:20:04.1]} 19. Rcd2 {[%clk 0:19:43.9]} 19... Rxd2 {[%clk 0:20:02.7]} 20. Rxd2 {[%clk 0:19:51.9]} 20... b6 {[%clk 0:20:09.9]} 21. g3 {[%clk 0:19:56.3]} 21... Bb7 {[%clk 0:20:17.6]} 22. Rd7 {[%clk 0:19:51.7]} 22... Bxf3 {[%clk 0:20:23.5]} 0-1

[Event "Live Chess"]
[Site "Chess.com"]
[Date "2021.02.06"]
[Round "2"]
[White "lionkingethan"]
[Black "LucasLiu88"]
[Result "0-1"]
[CurrentPosition "3r2k1/p4p1p/4p1p1/Q1N5/PP6/6PP/5q2/3r3K w - -"]
[Timezone "UTC"]
[ECO "B30"]
[ECOUrl "https://www.chess.com/openings/Sicilian-Defense-Open-3...cxd4"]
[UTCDate "2021.02.06"]
[UTCTime "19:01:24"]
[WhiteElo "1415"]
[BlackElo "1255"]
[TimeControl "1200+10"]
[Termination "LucasLiu88 won by checkmate"]
[StartTime "19:01:24"]
[EndDate "2021.02.06"]
[EndTime "19:18:48"]
[Link "https://www.chess.com/live/game/6472133212"]

1. e4 {[%clk 0:20:06.9]} 1... c5 {[%clk 0:20:08.4]} 2. Nf3 {[%clk 0:20:13.7]} 2... Nc6 {[%clk 0:20:17.1]} 3. d4 {[%clk 0:20:14.6]} 3... cxd4 {[%clk 0:20:25.8]} 4. Bc4 {[%clk 0:20:16.7]} 4... e6 {[%clk 0:20:33.4]} 5. Nxd4 {[%clk 0:20:12.4]} 5... Nf6 {[%clk 0:20:36.1]} 6. Nc3 {[%clk 0:20:16.2]} 6... Bc5 {[%clk 0:20:36.9]} 7. Nxc6 {[%clk 0:20:20.8]} 7... bxc6 {[%clk 0:20:45.8]} 8. O-O {[%clk 0:20:23.9]} 8... d5 {[%clk 0:20:52.2]} 9. e5 {[%clk 0:20:20.3]} 9... Nd7 {[%clk 0:20:51]} 10. Bb3 {[%clk 0:20:23.3]} 10... Nxe5 {[%clk 0:20:57.5]} 11. Bf4 {[%clk 0:20:24.3]} 11... Ng6 {[%clk 0:21:03.8]} 12. Bg3 {[%clk 0:20:31]} 12... Ba6 {[%clk 0:21:11.8]} 13. Re1 {[%clk 0:20:38]} 13... O-O {[%clk 0:21:20.7]} 14. Na4 {[%clk 0:20:42.6]} 14... Bd6 {[%clk 0:21:24.3]} 15. Bxd6 {[%clk 0:20:30.2]} 15... Qxd6 {[%clk 0:21:33]} 16. c4 {[%clk 0:20:29.1]} 16... Rfd8 {[%clk 0:21:13.5]} 17. cxd5 {[%clk 0:20:16.3]} 17... cxd5 {[%clk 0:21:20.4]} 18. Rc1 {[%clk 0:20:13.8]} 18... Nf4 {[%clk 0:21:06.5]} 19. Qd2 {[%clk 0:19:53.6]} 19... Nd3 {[%clk 0:21:07]} 20. Rc3 {[%clk 0:19:30.5]} 20... Nxe1 {[%clk 0:20:57.2]} 21. Qxe1 {[%clk 0:19:37.9]} 21... Rac8 {[%clk 0:21:02]} 22. Rg3 {[%clk 0:19:26.9]} 22... Qc6 {[%clk 0:20:39.3]} 23. Rc3 {[%clk 0:19:25.1]} 23... Qb5 {[%clk 0:20:27.7]} 24. Rg3 {[%clk 0:19:01.7]} 24... Rd7 {[%clk 0:20:21.2]} 25. Nc3 {[%clk 0:18:52.9]} 25... Qb6 {[%clk 0:20:02]} 26. Qe5 {[%clk 0:18:40.8]} 26... g6 {[%clk 0:19:58.4]} 27. h3 {[%clk 0:18:32.7]} 27... d4 {[%clk 0:19:33]} 28. Na4 {[%clk 0:18:16.3]} 28... Qc6 {[%clk 0:19:38.3]} 29. Kh2 {[%clk 0:18:00.8]} 29... Bc4 {[%clk 0:19:27.3]} 30. Bxc4 {[%clk 0:17:52.8]} 30... Qxc4 {[%clk 0:19:35.1]} 31. b3 {[%clk 0:18:00.1]} 31... Qc2 {[%clk 0:19:29.8]} 32. Qb5 {[%clk 0:18:00.2]} 32... Rcd8 {[%clk 0:19:33.9]} 33. Nc5 {[%clk 0:17:58]} 33... Rd5 {[%clk 0:19:39.4]} 34. b4 {[%clk 0:17:33.5]} 34... d3 {[%clk 0:19:25.5]} 35. Rxd3 {[%clk 0:16:56.8]} 35... Qxd3 {[%clk 0:19:25.7]} 36. Qa5 {[%clk 0:16:12]} 36... Qf5 {[%clk 0:19:27.9]} 37. a4 {[%clk 0:16:04.5]} 37... Qf4+ {[%clk 0:19:34.9]} 38. g3 {[%clk 0:15:55.1]} 38... Qxf2+ {[%clk 0:19:43.1]} 39. Kh1 {[%clk 0:16:03.3]} 39... Rd1# {[%clk 0:19:52.3]} 0-1

[Event "Live Chess"]
[Site "Chess.com"]
[Date "2021.02.06"]
[Round "2"]
[White "champ_shivam"]
[Black "10dral"]
[Result "1-0"]
[CurrentPosition "Q6k/1Q6/R7/6p1/4P1P1/8/5P1P/6K1 b - -"]
[Timezone "UTC"]
[ECO "C60"]
[ECOUrl "https://www.chess.com/openings/Ruy-Lopez-Opening"]
[UTCDate "2021.02.06"]
[UTCTime "19:01:50"]
[WhiteElo "1280"]
[BlackElo "1298"]
[TimeControl "1200+10"]
[Termination "champ_shivam won by checkmate"]
[StartTime "19:01:50"]
[EndDate "2021.02.06"]
[EndTime "19:25:15"]
[Link "https://www.chess.com/live/game/6472133945"]

1. e4 {[%clk 0:20:09.1]} 1... e5 {[%clk 0:20:08.1]} 2. Nf3 {[%clk 0:20:17.7]} 2... Nc6 {[%clk 0:20:16.1]} 3. Bb5 {[%clk 0:20:26.1]} 3... Bd6 {[%clk 0:20:23.8]} 4. Bxc6 {[%clk 0:20:31.9]} 4... bxc6 {[%clk 0:20:32]} 5. d4 {[%clk 0:20:40]} 5... exd4 {[%clk 0:20:38.5]} 6. Nxd4 {[%clk 0:20:47.4]} 6... Bc5 {[%clk 0:20:46.6]} 7. O-O {[%clk 0:20:52.2]} 7... d6 {[%clk 0:20:41.8]} 8. Re1 {[%clk 0:20:57.9]} 8... Ne7 {[%clk 0:20:21.2]} 9. Nc3 {[%clk 0:21:01.1]} 9... O-O {[%clk 0:20:24.3]} 10. Bg5 {[%clk 0:21:02.4]} 10... h6 {[%clk 0:20:27.6]} 11. Bxe7 {[%clk 0:21:01.6]} 11... Qxe7 {[%clk 0:20:35.1]} 12. Nxc6 {[%clk 0:20:46.5]} 12... Qf6 {[%clk 0:20:27.7]} 13. Qe2 {[%clk 0:20:20.8]} 13... Bb7 {[%clk 0:20:28.5]} 14. Na5 {[%clk 0:19:59.9]} 14... Bc8 {[%clk 0:20:10]} 15. Nd5 {[%clk 0:19:58.1]} 15... Qd8 {[%clk 0:19:48]} 16. Rad1 {[%clk 0:19:36.1]} 16... Be6 {[%clk 0:19:41.8]} 17. Nc6 {[%clk 0:19:09.4]} 17... Qg5 {[%clk 0:17:41.5]} 18. Nxc7 {[%clk 0:18:28.6]} 18... Rac8 {[%clk 0:17:45.1]} 19. Nxe6 {[%clk 0:18:23.6]} 19... fxe6 {[%clk 0:17:50.3]} 20. Nd4 {[%clk 0:18:13.4]} 20... e5 {[%clk 0:17:53.1]} 21. Ne6 {[%clk 0:18:09.7]} 21... Qh4 {[%clk 0:16:54.4]} 22. Nxf8 {[%clk 0:18:01.2]} 22... Rxf8 {[%clk 0:17:02.4]} 23. Rf1 {[%clk 0:17:57.5]} 23... Qg5 {[%clk 0:16:07.4]} 24. c3 {[%clk 0:17:07.4]} 24... a5 {[%clk 0:16:12.5]} 25. b4 {[%clk 0:16:50.2]} 25... axb4 {[%clk 0:16:19.2]} 26. cxb4 {[%clk 0:16:58.7]} 26... Bxb4 {[%clk 0:16:26.1]} 27. Qc4+ {[%clk 0:16:57.8]} 27... Kh8 {[%clk 0:16:20.3]} 28. Qxb4 {[%clk 0:16:56.7]} 28... Qe7 {[%clk 0:15:44.5]} 29. Rxd6 {[%clk 0:16:52.6]} 29... Kh7 {[%clk 0:15:26.3]} 30. Rxh6+ {[%clk 0:16:47.3]} 30... Kxh6 {[%clk 0:14:49.2]} 31. Qxe7 {[%clk 0:16:55.3]} 31... Rg8 {[%clk 0:14:55.8]} 32. Qxe5 {[%clk 0:16:56.9]} 32... g6 {[%clk 0:14:34.1]} 33. a4 {[%clk 0:17:00.7]} 33... Ra8 {[%clk 0:14:29]} 34. Ra1 {[%clk 0:16:59.8]} 34... g5 {[%clk 0:14:31.5]} 35. a5 {[%clk 0:17:07.5]} 35... Kh5 {[%clk 0:14:27.1]} 36. a6 {[%clk 0:17:14.4]} 36... Kh4 {[%clk 0:14:24]} 37. g3+ {[%clk 0:17:06]} 37... Kh5 {[%clk 0:14:25.7]} 38. a7 {[%clk 0:17:09.7]} 38... Kh6 {[%clk 0:13:46.4]} 39. Qd5 {[%clk 0:17:04.2]} 39... Rc8 {[%clk 0:13:43.9]} 40. Qe6+ {[%clk 0:17:09.8]} 40... Kh5 {[%clk 0:13:49.1]} 41. Qxc8 {[%clk 0:17:14.9]} 41... Kh6 {[%clk 0:13:52.9]} 42. g4 {[%clk 0:17:16.2]} 42... Kg6 {[%clk 0:14:00]} 43. Ra6+ {[%clk 0:17:23.1]} 43... Kh7 {[%clk 0:14:03.3]} 44. Qb7+ {[%clk 0:17:29.9]} 44... Kh8 {[%clk 0:14:10]} 45. a8=Q# {[%clk 0:17:37.9]} 1-0

[Event "Live Chess"]
[Site "Chess.com"]
[Date "2021.02.06"]
[Round "2"]
[White "Tyler_YABOI_Walsh"]
[Black "xiaowu2"]
[Result "0-1"]
[CurrentPosition "4K3/4q3/1p2k3/2p3p1/3p4/8/8/7b w - -"]
[Timezone "UTC"]
[ECO "C50"]
[ECOUrl "https://www.chess.com/openings/Giuoco-Piano-Game-Four-Knights-Game"]
[UTCDate "2021.02.06"]
[UTCTime "19:01:27"]
[WhiteElo "943"]
[BlackElo "1032"]
[TimeControl "1200+10"]
[Termination "xiaowu2 won by checkmate"]
[StartTime "19:01:27"]
[EndDate "2021.02.06"]
[EndTime "19:13:28"]
[Link "https://www.chess.com/live/game/6472134529"]

1. e4 {[%clk 0:20:09]} 1... e5 {[%clk 0:20:08.4]} 2. Nf3 {[%clk 0:20:16.6]} 2... Nc6 {[%clk 0:20:16.5]} 3. Nc3 {[%clk 0:20:22]} 3... Nf6 {[%clk 0:20:23.2]} 4. Bc4 {[%clk 0:20:26.1]} 4... Bc5 {[%clk 0:20:29.5]} 5. O-O {[%clk 0:20:32.9]} 5... O-O {[%clk 0:20:37.2]} 6. Ng5 {[%clk 0:20:29.4]} 6... h6 {[%clk 0:20:43.1]} 7. Nxf7 {[%clk 0:20:24.2]} 7... Rxf7 {[%clk 0:20:53]} 8. Bxf7+ {[%clk 0:20:32.2]} 8... Kxf7 {[%clk 0:21:02.9]} 9. d3 {[%clk 0:20:33.6]} 9... d6 {[%clk 0:21:09]} 10. Nd5 {[%clk 0:20:38.1]} 10... Nxd5 {[%clk 0:21:09.7]} 11. exd5 {[%clk 0:20:47.6]} 11... Nd4 {[%clk 0:21:16.6]} 12. Qh5+ {[%clk 0:20:54.7]} 12... Kf8 {[%clk 0:21:19.7]} 13. Bg5 {[%clk 0:20:42.3]} 13... Qxg5 {[%clk 0:21:07.3]} 14. Qxg5 {[%clk 0:20:50]} 14... hxg5 {[%clk 0:21:15]} 15. Rfe1 {[%clk 0:20:52.2]} 15... Nxc2 {[%clk 0:21:21.1]} 16. Rac1 {[%clk 0:20:42.7]} 16... Nxe1 {[%clk 0:21:28.8]} 17. Rxe1 {[%clk 0:20:51.2]} 17... Bd7 {[%clk 0:21:27.8]} 18. a3 {[%clk 0:20:53.1]} 18... a5 {[%clk 0:21:34.7]} 19. h3 {[%clk 0:20:41.5]} 19... Bf5 {[%clk 0:21:21]} 20. Rd1 {[%clk 0:20:41.9]} 20... Bd4 {[%clk 0:21:22.6]} 21. g4 {[%clk 0:20:47.8]} 21... Bg6 {[%clk 0:21:25.9]} 22. Kf1 {[%clk 0:20:38.2]} 22... Bxb2 {[%clk 0:21:32.7]} 23. Ke2 {[%clk 0:20:41.5]} 23... Bxa3 {[%clk 0:21:40.2]} 24. Rb1 {[%clk 0:20:42.4]} 24... b6 {[%clk 0:21:45.7]} 25. f3 {[%clk 0:20:33.5]} 25... Bf7 {[%clk 0:21:45.9]} 26. Rb5 {[%clk 0:20:37.4]} 26... Rc8 {[%clk 0:21:46.7]} 27. Ke3 {[%clk 0:20:42.7]} 27... Be8 {[%clk 0:21:54.3]} 28. Rb3 {[%clk 0:20:44.7]} 28... Bc5+ {[%clk 0:22:00.8]} 29. Ke4 {[%clk 0:20:50.3]} 29... c6 {[%clk 0:21:59.2]} 30. Kf5 {[%clk 0:20:52.8]} 30... cxd5 {[%clk 0:21:57.7]} 31. Ke6 {[%clk 0:20:57.4]} 31... d4 {[%clk 0:21:53.3]} 32. Kf5 {[%clk 0:20:44.9]} 32... Bf7 {[%clk 0:21:57.3]} 33. Rb2 {[%clk 0:20:46.2]} 33... g6+ {[%clk 0:21:48.8]} 34. Kxg5 {[%clk 0:20:53.5]} 34... Kg7 {[%clk 0:21:53.1]} 35. Rb1 {[%clk 0:20:52.8]} 35... Rh8 {[%clk 0:22:00]} 36. Rc1 {[%clk 0:20:59.1]} 36... Rxh3 {[%clk 0:22:03.3]} 37. f4 {[%clk 0:20:56.5]} 37... exf4 {[%clk 0:22:05.3]} 38. Rxc5 {[%clk 0:21:04.6]} 38... dxc5 {[%clk 0:22:12.9]} 39. Kxf4 {[%clk 0:21:09]} 39... Rxd3 {[%clk 0:22:19.9]} 40. Kg5 {[%clk 0:21:17.1]} 40... Rg3 {[%clk 0:22:16.1]} 41. Kh4 {[%clk 0:21:25.2]} 41... Rxg4+ {[%clk 0:22:25]} 42. Kxg4 {[%clk 0:21:34.1]} 42... a4 {[%clk 0:22:33.3]} 43. Kf3 {[%clk 0:21:42.9]} 43... a3 {[%clk 0:22:42.2]} 44. Ke2 {[%clk 0:21:51.8]} 44... a2 {[%clk 0:22:51.3]} 45. Kd3 {[%clk 0:21:51.2]} 45... a1=Q {[%clk 0:22:58]} 46. Ke4 {[%clk 0:21:57]} 46... Bd5+ {[%clk 0:23:04.4]} 47. Kf4 {[%clk 0:22:05.6]} 47... Qf1+ {[%clk 0:23:12]} 48. Ke5 {[%clk 0:22:14.6]} 48... Qf5+ {[%clk 0:23:19]} 49. Kd6 {[%clk 0:22:23.3]} 49... Qe6+ {[%clk 0:23:26.6]} 50. Kc7 {[%clk 0:22:32.2]} 50... Qc6+ {[%clk 0:23:34.3]} 51. Kd8 {[%clk 0:22:36.5]} 51... Bh1 {[%clk 0:23:27.2]} 52. Ke7 {[%clk 0:22:42.6]} 52... g5 {[%clk 0:23:33.1]} 53. Kd8 {[%clk 0:22:50.5]} 53... Qb7 {[%clk 0:23:36.2]} 54. Ke8 {[%clk 0:22:58.4]} 54... Kf6 {[%clk 0:23:40.3]} 55. Kd8 {[%clk 0:23:04.3]} 55... Ke6 {[%clk 0:23:46.1]} 56. Ke8 {[%clk 0:23:11.7]} 56... Qe7# {[%clk 0:23:56]} 0-1

[Event "Live Chess"]
[Site "Chess.com"]
[Date "2021.02.06"]
[Round "2"]
[White "AaravGoel5"]
[Black "buddyram"]
[Result "1-0"]
[CurrentPosition "7R/1p4kQ/p1pp1p2/8/8/2P4P/PP4PK/8 b - -"]
[Timezone "UTC"]
[ECO "C68"]
[ECOUrl "https://www.chess.com/openings/Ruy-Lopez-Opening-Morphy-Defense-Exchange-Variation-4...dxc6"]
[UTCDate "2021.02.06"]
[UTCTime "19:01:34"]
[WhiteElo "1102"]
[BlackElo "1381"]
[TimeControl "1200+10"]
[Termination "AaravGoel5 won by checkmate"]
[StartTime "19:01:34"]
[EndDate "2021.02.06"]
[EndTime "19:28:34"]
[Link "https://www.chess.com/live/game/6472135100"]

1. e4 {[%clk 0:20:07.5]} 1... e5 {[%clk 0:20:08.4]} 2. Nf3 {[%clk 0:20:12.9]} 2... Nc6 {[%clk 0:20:16.3]} 3. Bb5 {[%clk 0:20:20.4]} 3... a6 {[%clk 0:20:24.5]} 4. Bxc6 {[%clk 0:20:26.6]} 4... dxc6 {[%clk 0:20:33]} 5. d3 {[%clk 0:20:30.3]} 5... Bd6 {[%clk 0:20:39.9]} 6. O-O {[%clk 0:20:34.2]} 6... Nf6 {[%clk 0:20:47.8]} 7. Bg5 {[%clk 0:20:40.1]} 7... O-O {[%clk 0:20:53.9]} 8. Nbd2 {[%clk 0:20:45.5]} 8... h6 {[%clk 0:21:02]} 9. Bh4 {[%clk 0:20:52.4]} 9... Bg4 {[%clk 0:21:07.1]} 10. h3 {[%clk 0:20:58.6]} 10... Bh5 {[%clk 0:21:14.4]} 11. c3 {[%clk 0:21:05.1]} 11... Bg6 {[%clk 0:21:00.7]} 12. d4 {[%clk 0:21:09.4]} 12... Re8 {[%clk 0:20:46.5]} 13. dxe5 {[%clk 0:21:03.1]} 13... Bxe5 {[%clk 0:20:53.6]} 14. Nxe5 {[%clk 0:21:09.3]} 14... Rxe5 {[%clk 0:21:02.4]} 15. f4 {[%clk 0:21:16.2]} 15... Re8 {[%clk 0:20:56.1]} 16. e5 {[%clk 0:21:09.2]} 16... Bd3 {[%clk 0:16:47.7]} 17. Rf2 {[%clk 0:21:07.8]} 17... Qe7 {[%clk 0:12:16.4]} 18. exf6 {[%clk 0:21:01.5]} 18... gxf6 {[%clk 0:12:26.3]} 19. Nf3 {[%clk 0:21:07.2]} 19... Rad8 {[%clk 0:12:03.3]} 20. Ne5 {[%clk 0:21:13]} 20... Bf5 {[%clk 0:10:44.1]} 21. Qh5 {[%clk 0:21:13.4]} 21... Qe6 {[%clk 0:10:20.7]} 22. Qxh6 {[%clk 0:20:59.8]} 22... Rd6 {[%clk 0:09:47.2]} 23. Nf3 {[%clk 0:21:00.3]} 23... Bg6 {[%clk 0:06:33.3]} 24. Re1 {[%clk 0:20:57.2]} 24... Qd7 {[%clk 0:05:59]} 25. f5 {[%clk 0:20:59.3]} 25... Rxe1+ {[%clk 0:05:11]} 26. Nxe1 {[%clk 0:21:05.6]} 26... Bxf5 {[%clk 0:04:55.6]} 27. Bxf6 {[%clk 0:21:11.8]} 27... Rxf6 {[%clk 0:04:20.9]} 28. Qxf6 {[%clk 0:21:16.4]} 28... Bg6 {[%clk 0:04:26.5]} 29. Re2 {[%clk 0:21:22.6]} 29... Kh7 {[%clk 0:03:56.9]} 30. Re7 {[%clk 0:21:26.7]} 30... Qd6 {[%clk 0:03:53.6]} 31. Qh4+ {[%clk 0:21:32.5]} 31... Kg7 {[%clk 0:03:57.5]} 32. Re8 {[%clk 0:21:39.9]} 32... Bh7 {[%clk 0:03:58.4]} 33. Nf3 {[%clk 0:21:46.4]} 33... Qd1+ {[%clk 0:04:03.8]} 34. Kh2 {[%clk 0:21:52.5]} 34... Qd6+ {[%clk 0:04:05.5]} 35. Ne5 {[%clk 0:21:56.7]} 35... f6 {[%clk 0:04:07.4]} 36. Qg3+ {[%clk 0:21:48]} 36... Kh6 {[%clk 0:04:07.2]} 37. Nf7+ {[%clk 0:21:57.6]} 37... Kh5 {[%clk 0:04:14.1]} 38. Nxd6 {[%clk 0:22:01.4]} 38... cxd6 {[%clk 0:04:14.4]} 39. Rh8 {[%clk 0:22:08.1]} 39... Kh6 {[%clk 0:04:22.2]} 40. Qh4+ {[%clk 0:22:13.4]} 40... Kg7 {[%clk 0:04:29.4]} 41. Qxh7# {[%clk 0:22:21.6]} 1-0

[Event "Live Chess"]
[Site "Chess.com"]
[Date "2021.02.06"]
[Round "2"]
[White "Lefthanded32"]
[Black "AnshulPlaysChess"]
[Result "1-0"]
[CurrentPosition "3kr3/3R4/1N1pn3/1p2pB2/4P3/r2P4/2PK4/8 b - -"]
[Timezone "UTC"]
[ECO "C26"]
[ECOUrl "https://www.chess.com/openings/Vienna-Game-Falkbeer-Variation-3.d3"]
[UTCDate "2021.02.06"]
[UTCTime "19:01:41"]
[WhiteElo "1311"]
[BlackElo "868"]
[TimeControl "1200+10"]
[Termination "Lefthanded32 won by checkmate"]
[StartTime "19:01:41"]
[EndDate "2021.02.06"]
[EndTime "19:21:09"]
[Link "https://www.chess.com/live/game/6472135960"]

1. e4 {[%clk 0:20:04.7]} 1... e5 {[%clk 0:20:08.4]} 2. d3 {[%clk 0:20:01.3]} 2... Nf6 {[%clk 0:20:12.8]} 3. Nc3 {[%clk 0:20:08.8]} 3... Bc5 {[%clk 0:20:20.1]} 4. g3 {[%clk 0:19:51.7]} 4... O-O {[%clk 0:20:25.8]} 5. Bg5 {[%clk 0:19:44.6]} 5... Nc6 {[%clk 0:20:28.6]} 6. Qg4 {[%clk 0:19:44]} 6... d6 {[%clk 0:20:28.2]} 7. Qf3 {[%clk 0:19:33.1]} 7... Bg4 {[%clk 0:20:32.2]} 8. Bxf6 {[%clk 0:19:35.3]} 8... Bxf3 {[%clk 0:20:37.3]} 9. Bxd8 {[%clk 0:19:44]} 9... Raxd8 {[%clk 0:20:44.5]} 10. Nxf3 {[%clk 0:19:52.6]} 10... Nb4 {[%clk 0:20:42.2]} 11. O-O-O {[%clk 0:19:56.4]} 11... h6 {[%clk 0:20:47]} 12. a3 {[%clk 0:19:54.4]} 12... Nc6 {[%clk 0:20:54.8]} 13. Nd5 {[%clk 0:19:59.9]} 13... Bxf2 {[%clk 0:20:57.7]} 14. b4 {[%clk 0:19:52.6]} 14... a6 {[%clk 0:21:04.7]} 15. Rd2 {[%clk 0:19:47.9]} 15... Ba7 {[%clk 0:20:55.9]} 16. Nxc7 {[%clk 0:19:50.7]} 16... Be3 {[%clk 0:20:58.2]} 17. Nd5 {[%clk 0:19:03.9]} 17... Bxd2+ {[%clk 0:21:05]} 18. Kxd2 {[%clk 0:19:09.4]} 18... b5 {[%clk 0:21:05.9]} 19. Bh3 {[%clk 0:18:39.7]} 19... a5 {[%clk 0:20:38.5]} 20. bxa5 {[%clk 0:18:33.3]} 20... Nxa5 {[%clk 0:20:46.7]} 21. Ne7+ {[%clk 0:18:15.8]} 21... Kh8 {[%clk 0:20:48.9]} 22. Nh4 {[%clk 0:18:10.3]} 22... Rfe8 {[%clk 0:20:56.6]} 23. Nhf5 {[%clk 0:18:03.7]} 23... g6 {[%clk 0:20:59.6]} 24. Nd5 {[%clk 0:16:49]} 24... gxf5 {[%clk 0:21:02.9]} 25. Nf6 {[%clk 0:16:50.9]} 25... Rf8 {[%clk 0:21:01.8]} 26. Bxf5 {[%clk 0:16:56.1]} 26... Ra8 {[%clk 0:20:54.9]} 27. h4 {[%clk 0:16:56.8]} 27... Kg7 {[%clk 0:21:00.3]} 28. Nh5+ {[%clk 0:17:00.9]} 28... Kg8 {[%clk 0:21:01.1]} 29. g4 {[%clk 0:17:04.5]} 29... f6 {[%clk 0:21:08.1]} 30. g5 {[%clk 0:17:08.4]} 30... fxg5 {[%clk 0:20:58.5]} 31. hxg5 {[%clk 0:17:15.1]} 31... hxg5 {[%clk 0:21:01.4]} 32. Rg1 {[%clk 0:17:22.1]} 32... Kf7 {[%clk 0:21:02.6]} 33. Rxg5 {[%clk 0:17:20]} 33... Ke7 {[%clk 0:21:05.8]} 34. Rg6 {[%clk 0:16:54.7]} 34... Ra6 {[%clk 0:21:02.7]} 35. Re6+ {[%clk 0:16:53]} 35... Kd8 {[%clk 0:21:08.8]} 36. Nf6 {[%clk 0:16:41.7]} 36... Nb7 {[%clk 0:21:14.7]} 37. Nh7 {[%clk 0:15:58]} 37... Re8 {[%clk 0:21:15.2]} 38. Rg6 {[%clk 0:16:00.9]} 38... Rxa3 {[%clk 0:21:20.5]} 39. Rg7 {[%clk 0:15:55.2]} 39... Nc5 {[%clk 0:21:10.3]} 40. Nf6 {[%clk 0:15:19.5]} 40... Rf8 {[%clk 0:21:12.6]} 41. Nd5 {[%clk 0:14:34.3]} 41... Re8 {[%clk 0:20:36.3]} 42. Nb6 {[%clk 0:14:33.8]} 42... Ne6 {[%clk 0:20:38.7]} 43. Rd7# {[%clk 0:14:25.5]} 1-0